bitfinex/quotes_SOLUSD_20250508
["timestamp","ask_amount","ask_price","bid_price","bid_amount"]
[1746730432219,26.0,160.22,160.19,35.19659475]
[1746730433250,6.24180762,160.21,160.19,35.19659475]
[1746730434036,6.24180762,160.21,160.19,16.48]
[1746730435043,6.24180762,160.21,160.19,35.19659475]
[1746730435218,21.84359982,160.23,160.19,35.19659475]
[1746730439741,40.56019457,160.23,160.19,35.19659475]
[1746730439933,21.84359982,160.23,160.19,16.48]
[1746730440133,40.56019457,160.23,160.19,16.48]
[1746730440435,18.71659475,160.22,160.19,16.48]
[1746730441254,18.71659475,160.21,160.19,16.48]
[1746730441554,18.71659475,160.22,160.19,16.48]
[1746730441847,6.24180762,160.21,160.19,16.48]
[1746730446047,40.56019457,160.23,160.19,16.48]
[1746730446255,21.84359982,160.23,160.2,18.71659475]
[1746730447160,142.64081071,160.24,160.22,18.71659475]
[1746730447332,6.24081071,160.24,160.22,18.71659475]
[1746730448152,6.2402496,160.25,160.22,18.71659475]
[1746730448732,6.2402496,160.25,160.19,17.9911]
[1746730449045,21.84087362,160.25,160.22,18.71659475]
[1746730450439,6.2402496,160.25,160.22,18.71659475]
[1746730451871,21.84087362,160.25,160.22,18.71659475]
[1746730452152,21.84087362,160.25,160.19,17.9911]
[1746730452363,21.84087362,160.25,160.22,18.71659475]
[1746730454565,21.84087362,160.25,160.19,1.5111]
[1746730454741,18.71659475,160.22,160.15,109.8484]
[1746730454943,18.71659475,160.21,160.2,16.42]
[1746730455143,136.4,160.24,160.2,16.42]
[1746730455345,18.71659475,160.22,160.2,16.42]
[1746730456689,6.24180762,160.21,160.2,16.42]
[1746730460561,40.56292143,160.21,160.2,16.4]
[1746730461667,40.56292143,160.21,160.14,22.7662]
[1746730461864,21.84632668,160.21,160.15,35.11659475]
[1746730462053,18.71659475,160.2,160.16,16.4]
[1746730462540,18.71659475,160.2,160.16,35.11659475]
[1746730463978,6.24258692,160.19,160.16,35.11659475]
[1746730465864,6.24258692,160.19,160.17,18.71659475]
[1746730466066,24.9580128,160.22,160.17,18.71659475]
[1746730466279,24.9580128,160.22,160.18,18.71659475]
[1746730466280,6.24141805,160.22,160.18,18.71659475]
[1746730466475,6.24141805,160.22,160.19,18.71659475]
[1746730466684,142.64114976,160.23,160.21,18.71659475]
[1746730466858,9.94165465,160.25,160.22,35.09659475]
[1746730467765,34.89864808,160.25,160.22,16.38]
[1746730468072,34.89864808,160.25,160.16,69.75207727]
[1746730468073,18.71659475,160.24,160.23,16.38]
[1746730468459,24.95723379,160.24,160.23,16.38]
[1746730469179,40.55883139,160.24,160.23,16.38]
[1746730469556,21.84223664,160.24,160.23,16.38]
[1746730469760,40.55883139,160.24,160.23,16.38]
[1746730472572,18.64964886,160.22,160.11,16.4]
[1746730472754,18.71659475,160.17,160.13,18.71659475]
[1746730473563,18.71659475,160.17,160.14,16.38]
[1746730474576,24.96006027,160.17,160.14,16.38]
[1746730475272,18.71659475,160.16,160.1,48.9033]
[1746730475572,18.71659475,160.14,160.11,16.36]
[1746730475757,18.71659475,160.15,160.11,16.36]
[1746730476076,18.71659475,160.15,160.1,35.11659475]
[1746730476261,18.71659475,160.15,160.11,35.07659475]
[1746730476774,18.71659475,160.15,160.11,16.36]
[1746730476976,18.71659475,160.15,160.11,35.07659475]
[1746730477168,24.96042537,160.16,160.11,35.07659475]
[1746730477982,24.96042537,160.16,160.11,18.71659475]
[1746730478183,18.71659475,160.14,160.12,16.36]
[1746730478358,18.71659475,160.15,160.13,16.36]
[1746730478778,6.24453603,160.14,160.13,16.36]
[1746730479579,6.2442496,160.15,160.13,16.36]
[1746730479776,6.24380808,160.16,160.13,16.36]
[1746730479977,6.24380808,160.16,160.13,35.07659475]
[1746730480478,6.24380808,160.16,160.13,16.36]
[1746730480984,24.96040283,160.16,160.13,16.36]
[1746730481862,18.71659475,160.15,160.13,16.36]
[1746730482066,18.71659475,160.15,160.04,20.53753264]
[1746730482067,18.71659475,160.13,160.06,38.6312011]
[1746730482383,18.71659475,160.13,160.07,16.36]
[1746730482588,136.4,160.15,160.06,32.3837]
[1746730482790,136.4,160.15,160.08,16.36]
[1746730483388,136.4,160.15,160.04,16.4]
[1746730483389,21.85724098,160.13,160.04,16.4]
[1746730483689,136.4,160.12,160.05,16.36]
[1746730484689,136.4,160.12,160.04,16.4]
[1746730485064,136.4,160.12,160.05,16.36]
[1746730485384,6.24570607,160.11,160.05,16.36]
[1746730485773,6.24570607,160.11,160.06,16.36]
[1746730490586,142.64540097,160.12,160.06,48.60765387]
[1746730491169,142.64540097,160.12,160.06,42.36]
[1746730491793,6.24540097,160.12,160.06,42.36]
[1746730492387,21.85629539,160.14,160.06,42.36]
[1746730494371,21.85629539,160.14,160.07,16.34]
[1746730494692,136.4,160.13,160.07,16.34]
[1746730496386,21.85860604,160.12,160.07,16.34]
[1746730496584,21.85860604,160.12,160.08,16.34]
[1746730496985,21.85860604,160.12,160.03,98.58867393]
[1746730497173,21.85860604,160.12,160.04,16.34]
[1746730500200,21.85860604,160.12,160.03,42.34]
[1746730500496,21.85860604,160.12,160.05,16.32]
[1746730500703,136.4,160.11,160.05,16.32]
[1746730501376,136.4,160.11,160.06,16.32]
[1746730501905,136.4,160.11,160.03,42.34]
[1746730502201,158.26133665,160.1,160.03,16.34]
[1746730502372,158.26133665,160.1,160.02,6.3351]
[1746730502575,184.26133665,160.1,160.0,13.805391]
[1746730502775,184.26133665,160.1,160.01,16.32]
[1746730502776,26.0,160.06,160.01,16.32]
[1746730502994,26.0,160.06,160.0,13.805391]
[1746730502995,27.6052,160.06,160.0,13.805391]
[1746730503180,18.64964886,160.05,160.01,16.32]
[1746730504507,18.75863224,160.03,160.01,16.32]
[1746730505289,18.75863224,160.03,160.02,16.32]
[1746730505490,155.15863224,160.03,160.02,16.32]
[1746730505794,173.8082811,160.03,160.02,16.32]
[1746730505986,199.8082811,160.03,160.0,13.805391]
[1746730506297,37.4082811,160.01,160.0,13.805391]
[1746730506604,24.89925825,160.01,160.0,30.125391]
[1746730506795,43.65789049,160.01,160.0,30.125391]
[1746730512005,5.17663579,160.05,160.0,30.125391]
[1746730512006,6.24804748,160.05,160.0,30.125391]
[1746730512207,6.24687656,160.08,160.04,18.75863224]
[1746730512402,6.24687656,160.08,160.05,18.75863224]
[1746730512584,6.24687656,160.08,160.06,16.32]
[1746730512788,16.37352919,160.09,160.06,35.07863224]
[1746730513196,16.37352919,160.09,160.06,16.32]
[1746730514193,29.99012876,160.08,160.06,16.32]
[1746730514399,29.99012876,160.07,160.0,13.805391]
[1746730514599,29.99012876,160.04,160.01,16.3]
[1746730516199,29.99012876,160.03,160.0,13.805391]
[1746730516404,29.99012876,160.01,160.0,30.105391]
[1746730516740,29.99012876,160.02,160.0,30.105391]
[1746730516917,188.25829495,160.05,160.0,60.09551976]
[1746730517494,29.99012876,160.04,160.0,30.105391]
[1746730518520,36.23871258,160.04,160.0,30.105391]
[1746730519599,36.23871258,160.04,160.0,60.09551976]
[1746730520020,6.24858382,160.04,160.0,60.09551976]
[1746730520623,1.6662,160.07,160.02,29.99012876]
[1746730520819,55.99012876,160.08,160.03,29.99012876]
[1746730521121,36.23753322,160.07,160.03,29.99012876]
[1746730522221,36.23753322,160.07,160.0,36.35508068]
[1746730522419,36.23753322,160.07,160.03,29.99012876]
[1746730523522,36.23753322,160.07,160.0,20.05531247]
[1746730523720,36.23753322,160.07,160.03,29.99012876]
[1746730525920,6.24740446,160.07,160.03,29.99012876]
[1746730526130,6.2471481,160.08,160.04,29.99012876]
[1746730526429,36.23727686,160.08,160.03,29.99012876]
[1746730526803,29.99012876,160.04,160.0,13.805391]
[1746730527019,29.99012876,160.03,160.01,16.28]
[1746730529327,6.24921884,160.02,160.01,16.28]
[1746730530222,6.24891106,160.03,160.01,16.28]
[1746730533529,6.24843789,160.04,160.01,16.28]
[1746730533718,6.24843789,160.04,160.0,43.79551976]
[1746730533924,29.99012876,160.03,160.01,16.26]
[1746730534229,29.99012876,160.03,160.0,13.805391]
[1746730534413,29.99012876,160.03,160.01,16.26]
[1746730534925,29.99012876,160.03,160.0,13.805391]
[1746730535399,29.99012876,160.03,160.01,16.26]
[1746730536528,29.99012876,160.02,160.01,16.26]
[1746730536720,15.62109472,160.04,160.01,16.26]
[1746730537030,45.61122348,160.04,160.01,16.26]
[1746730537218,29.99012876,160.03,160.01,16.26]
[1746730537809,29.99012876,160.03,160.0,13.805391]
[1746730537810,6.24960939,160.01,160.0,13.805391]
[1746730538009,6.24960939,160.01,160.0,30.065391]
[1746730540229,6.24921884,160.02,160.0,30.065391]
[1746730540733,37.41132346,160.04,160.0,48.8270656]
[1746730540934,37.41132346,160.04,160.0,30.065391]
[1746730541233,18.7616746,160.04,160.0,48.8270656]
[1746730542634,25.01034077,160.04,160.0,48.8270656]
[1746730543228,6.24866617,160.04,160.0,48.8270656]
[1746730544033,17.16993813,160.13,160.03,44.7616746]
[1746730544340,7.80217783,160.13,160.08,18.7616746]
[1746730544544,7.80217783,160.13,160.11,18.7616746]
[1746730544716,6.24453603,160.14,160.11,18.7616746]
[1746730545219,6.24453603,160.14,160.1,18.7616746]
[1746730545419,25.00621063,160.14,160.1,18.7616746]
[1746730545830,36.21598071,160.14,160.1,29.97144468]
[1746730546214,36.21598071,160.14,160.11,16.24]
[1746730546415,6.24453603,160.14,160.11,16.24]
[1746730546761,29.97144468,160.13,160.12,16.24]
[1746730547840,36.21637067,160.13,160.12,16.24]
[1746730549141,6.24492599,160.13,160.12,16.24]
[1746730550132,21.8558761,160.14,160.12,16.24]
[1746730551243,142.64453603,160.14,160.12,16.24]
[1746730552738,142.64453603,160.14,160.07,6.24690926]
[1746730552939,18.79181043,160.11,160.08,16.24]
[1746730553441,26.0,160.12,160.08,16.24]
[1746730554843,6.24570607,160.11,160.08,16.24]
[1746730555642,18.64964886,160.13,160.06,51.6118]
[1746730555954,6.24453603,160.14,160.07,16.22]
[1746730556834,6.24414611,160.15,160.07,16.22]
[1746730557022,6.24414611,160.15,160.07,22.46717183]
[1746730559745,21.85451139,160.15,160.07,16.22]
[1746730559960,21.85451139,160.15,160.08,16.22]
[1746730560455,18.79181043,160.14,160.09,16.22]
[1746730560743,136.4,160.13,160.09,16.22]
[1746730560951,136.4,160.13,160.1,16.22]
[1746730561343,6.24531601,160.12,160.1,16.22]
[1746730566650,6.24531601,160.12,160.06,26.0]
[1746730566838,6.24531601,160.12,160.11,16.2]
[1746730568042,142.64501981,160.13,160.11,16.2]
[1746730571546,158.2573348,160.13,160.12,16.2]
[1746730576059,155.19181043,160.12,160.02,17.8318]
[1746730576247,136.4,160.11,160.03,16.18]
[1746730577875,6.24609618,160.1,160.03,16.18]
[1746730578051,6.24609618,160.1,160.03,22.42871803]
[1746730578467,6.24609618,160.1,160.03,16.18]
[1746730580279,21.86133665,160.1,160.03,16.18]
[1746730583051,21.86133665,160.1,160.03,22.42874205]
[1746730583557,21.86133665,160.1,160.03,16.18]
[1746730585669,21.86133665,160.1,160.03,22.42873677]
[1746730585869,6.24609618,160.1,160.03,72.42873677]
[1746730586169,142.64586985,160.11,160.03,72.42873677]
[1746730586572,142.64586985,160.11,160.04,6.5564]
[1746730587281,11.20430678,160.15,160.07,26.0]
[1746730587483,6.24453603,160.14,160.08,26.0]
[1746730587663,6.24453603,160.14,160.09,16.16]
[1746730591361,21.8558761,160.14,160.1,16.16]
[1746730592681,21.8558761,160.14,160.06,26.0]
[1746730592863,21.8558761,160.14,160.11,16.16]
[1746730593063,136.4,160.13,160.11,16.16]
[1746730593971,136.4,160.13,160.06,26.0]
[1746730593972,18.79181043,160.12,160.04,32.5564]
[1746730594159,18.79181043,160.12,160.05,16.16]
[1746730594160,136.4,160.11,160.05,16.16]
[1746730594669,6.24609618,160.1,160.05,16.16]
[1746730594989,21.86133665,160.1,160.06,16.16]
[1746730595886,21.86133665,160.1,160.02,27.6118]
[1746730596092,18.79181043,160.09,160.0,36.530591]
[1746730596379,155.19181043,160.09,160.03,16.16]
[1746730596685,21.86406796,160.08,160.03,16.16]
[1746730597491,21.86406796,160.08,160.0,62.530591]
[1746730597693,21.86406796,160.08,160.04,16.16]
[1746730597862,136.4,160.07,160.04,16.16]
[1746730598480,158.26679994,160.06,160.05,16.14]
[1746730598663,158.26679994,160.06,160.0,13.805391]
[1746730598863,136.4,160.05,160.0,13.805391]
[1746730599298,136.4,160.05,160.01,16.14]
[1746730600486,6.24843789,160.04,160.01,16.14]
[1746730602968,21.86953261,160.04,160.02,16.14]
[1746730603788,136.4,160.03,160.0,13.805391]
[1746730603985,136.4,160.03,160.01,16.14]
[1746730604885,155.19181043,160.02,160.0,13.805391]
[1746730605097,161.44141982,160.01,160.0,13.805391]
[1746730605473,161.44141982,160.01,159.99,16.14]
[1746730605695,27.652,160.0,159.99,16.14]
[1746730605871,18.79181043,159.99,159.97,16.14]
[1746730606191,18.79181043,159.97,159.89,27.6027]
[1746730606377,136.4,159.96,159.9,16.14]
[1746730607084,6.25195373,159.95,159.9,16.14]
[1746730607287,6.25195373,159.95,159.91,16.14]
[1746730608286,21.88183806,159.95,159.91,16.14]
[1746730611582,6.25273557,159.93,159.92,16.14]
[1746730614294,6.25273557,159.93,159.86,26.0]
[1746730614482,21.88457449,159.93,159.86,26.0]
[1746730614682,21.88457449,159.93,159.87,16.14]
[1746730614998,21.88457449,159.93,159.88,16.14]
[1746730615578,6.2535176,159.91,159.84,48.37597883]
[1746730615798,6.2535176,159.91,159.89,16.14]
[1746730616179,6.2535176,159.91,159.84,48.37597883]
[1746730616380,21.8873116,159.91,159.85,16.14]
[1746730617195,21.8873116,159.91,159.84,26.0]
[1746730617398,18.79181043,159.9,159.85,16.14]
[1746730617583,158.2900494,159.89,159.85,16.14]
[1746730617788,136.4,159.88,159.85,16.14]
[1746730617990,136.4,159.88,159.86,16.14]
[1746730618298,136.4,159.88,159.87,16.12]
[1746730620201,142.65469101,159.88,159.87,16.12]
[1746730621582,136.4,159.88,159.87,16.12]
[1746730622492,142.65469101,159.88,159.87,16.12]
[1746730622789,6.25273557,159.93,159.87,16.12]
[1746730623589,6.25273557,159.93,159.87,22.37471943]
[1746730624007,6.25234462,159.94,159.87,22.37471943]
[1746730624205,6.25234462,159.94,159.87,16.12]
[1746730624993,6.25234462,159.94,159.87,22.37508069]
[1746730625202,6.25234462,159.94,159.87,16.12]
[1746730625797,6.25234462,159.94,159.87,22.37504151]
[1746730626499,142.65208792,159.95,159.88,1.5509]
[1746730626704,6.25117209,159.97,159.88,59.64586283]
[1746730627601,6.25117209,159.97,159.91,26.0]
[1746730628110,6.25078134,159.98,159.91,38.27106478]
[1746730632013,11.39421952,160.0,159.95,26.0]
[1746730632190,11.39421952,160.0,159.96,16.1]
[1746730633616,17.64421998,160.0,159.96,16.1]
[1746730635620,17.64421998,160.0,159.97,16.1]
[1746730636837,33.26921998,160.0,159.97,16.1]
[1746730637217,33.26921998,160.0,159.92,32.25285617]
[1746730637515,33.26921998,160.0,159.93,16.1]
[1746730639518,17.64421998,160.0,159.93,16.1]
[1746730640916,17.64421998,160.0,159.94,16.1]
[1746730641114,33.26921998,160.0,159.94,16.1]
[1746730641302,34.82261998,160.0,159.94,16.1]
[1746730641717,136.4,159.99,159.94,16.1]
[1746730643505,6.25078134,159.98,159.94,16.1]
[1746730644423,6.25078134,159.98,159.95,16.08]
[1746730644925,21.8777347,159.98,159.95,16.08]
[1746730647131,6.25078134,159.98,159.95,16.08]
[1746730647425,142.65052907,159.99,159.95,16.08]
[1746730647612,6.25052907,159.99,159.95,16.08]
[1746730651016,17.64429179,160.0,159.95,22.33188477]
[1746730652335,11.39421952,160.0,159.95,22.33188477]
[1746730656139,6.24962285,160.01,159.95,22.33188477]
[1746730656619,136.4,160.02,159.98,26.0]
[1746730656828,1.8883,160.04,159.98,26.0]
[1746730657944,33.7011,160.11,159.98,26.0]
[1746730657945,3.07931396,160.13,160.02,6.5817]
[1746730658234,11.20430678,160.15,160.06,76.0]
[1746730658235,17.44875769,160.15,160.06,76.0]
[1746730658411,17.44875769,160.15,160.07,16.06]
[1746730659438,17.44875769,160.15,160.08,50.0]
[1746730659641,17.44875769,160.15,160.09,16.06]
[1746730660233,6.24445091,160.15,160.09,16.06]
[1746730660737,21.85090939,160.18,160.09,16.06]
[1746730661847,21.85090939,160.18,160.06,102.74461169]
[1746730662138,21.85090939,160.18,160.07,32.12]
[1746730663842,21.85090939,160.18,160.07,38.36720143]
[1746730665550,18.79181043,160.17,160.08,16.04]
[1746730666043,30.46429998,160.17,160.08,16.04]
[1746730667543,21.85314684,160.16,160.09,16.04]
[1746730668623,136.4,160.15,160.09,16.04]
[1746730670252,6.24453603,160.14,160.09,16.04]
[1746730673443,136.4,160.13,160.1,16.02]
[1746730674748,30.46429998,160.17,160.1,66.02]
[1746730674749,11.67248955,160.17,160.1,66.02]
[1746730675047,17.9159939,160.17,160.1,81.48802144]
[1746730675357,11.67248955,160.17,160.11,6.24570607]
[1746730676351,17.91598099,160.17,160.11,6.24570607]
[1746730678831,11.67248955,160.17,160.11,6.24570607]
[1746730679033,11.67248955,160.17,160.12,76.0]
[1746730680557,11.67248955,160.17,160.13,6.24492599]
[1746730682759,6.24217185,160.21,160.14,50.0]
[1746730683646,6.24217185,160.21,160.15,6.24414611]
[1746730683855,6.24217185,160.21,160.16,16.02]
[1746730684053,6.24217185,160.21,160.16,15.89247912]
[1746730687152,21.84669091,160.21,160.17,16.0]
[1746730687349,136.4,160.2,160.17,16.0]
[1746730688666,6.24258692,160.19,160.17,16.0]
[1746730702574,21.84905424,160.19,160.1,76.0]
[1746730702752,21.84905424,160.19,160.11,15.98]
[1746730704776,21.84905424,160.19,160.11,22.22553294]
[1746730706580,6.24258692,160.19,160.11,22.22553294]
[1746730706981,6.24258692,160.19,160.12,50.0]
[1746730707876,6.24258692,160.19,160.12,65.96]
[1746730708280,6.24258692,160.19,160.13,6.24492599]
[1746730709893,142.64232481,160.2,160.13,32.24492599]
[1746730710593,158.24781794,160.2,160.1,50.0]
[1746730710780,158.24781794,160.2,160.11,15.96]
[1746730712906,158.24781794,160.2,160.11,22.20562909]
[1746730719616,158.24781794,160.2,160.12,15.96]
[1746730720615,158.24781794,160.2,160.12,22.20528523]
[1746730721107,158.24781794,160.2,160.12,15.96]
[1746730730137,158.24781794,160.2,160.12,22.20525899]
[1746730735711,158.24781794,160.2,160.12,15.96]
[1746730735917,158.24781794,160.2,160.13,15.92]
[1746730736133,1.6459,160.19,160.13,15.92]
[1746730736336,26.0,160.17,160.07,132.3]
[1746730736518,26.0,160.17,160.08,15.92]
[1746730736725,18.79181043,160.16,160.09,15.92]
[1746730736930,26.0,160.15,160.09,15.92]
[1746730737425,26.0,160.15,160.1,15.92]
[1746730737624,11.55080606,160.17,160.1,15.92]
[1746730737827,37.55080606,160.17,160.1,15.92]
[1746730738028,6.24375624,160.16,160.1,15.92]
[1746730740332,6.24375624,160.16,160.1,22.165866]
[1746730740534,17.79431646,160.17,160.1,22.165866]
[1746730740839,11.55080606,160.17,160.1,37.78110647]
[1746730743146,17.79423367,160.17,160.1,22.165866]
[1746730746322,17.79423367,160.17,160.12,50.0]
[1746730746323,11.55080606,160.17,160.12,50.0]
[1746730748428,153.65153088,160.23,160.12,50.0]
[1746730748429,6.24141805,160.22,160.13,6.24492599]
[1746730749157,21.84496317,160.22,160.13,6.24492599]
[1746730750146,6.24141805,160.22,160.14,50.0]
[1746730750750,6.24141805,160.22,160.15,6.24414611]
[1746730750950,6.24141805,160.22,160.16,15.92]
[1746730751340,6.24141805,160.22,160.16,65.92]
[1746730752340,6.24141805,160.22,160.16,72.16366123]
[1746730756255,6.24141805,160.22,160.16,65.92]
[1746730756866,6.24141805,160.22,160.16,72.16374938]
[1746730757360,6.24141805,160.22,160.16,65.92]
[1746730767352,21.84496317,160.22,160.16,65.92]
[1746730767670,21.84496317,160.22,160.14,94.79181043]
[1746730767963,26.0,160.19,160.13,98.2]
[1746730768181,26.0,160.19,160.14,15.9]
[1746730769150,21.85041827,160.18,160.14,15.9]
[1746730769345,21.85041827,160.18,160.09,50.0]
[1746730769570,21.85041827,160.18,160.1,15.9]
[1746730770756,1.5277,160.17,160.1,15.9]
[1746730771161,6.24375624,160.16,160.1,15.9]
[1746730772079,21.85314684,160.16,160.08,41.9]
[1746730772281,21.85314684,160.16,160.11,15.9]
[1746730773376,21.85314684,160.16,160.08,41.9]
[1746730773574,21.85314684,160.16,160.09,15.9]
[1746730779384,136.4,160.15,160.08,15.9]
[1746730779884,136.4,160.15,160.09,15.9]
[1746730780076,21.8558761,160.14,160.09,15.9]
[1746730781462,21.8558761,160.14,160.1,15.9]
[1746730782284,21.8558761,160.14,160.05,56.24790484]
[1746730782477,21.8558761,160.14,160.06,15.9]
[1746730782987,21.8558761,160.14,160.07,15.9]
[1746730784066,21.8558761,160.14,160.08,15.9]
[1746730785784,21.8558761,160.14,160.04,67.34831047]
[1746730785785,21.8558761,160.14,160.09,15.9]
[1746730785983,136.4,160.13,160.09,15.9]
[1746730786567,136.4,160.13,160.1,15.9]
[1746730787690,136.4,160.13,160.11,15.9]
[1746730787895,21.85860604,160.12,160.04,41.9]
[1746730788076,21.85860604,160.12,160.05,15.9]
[1746730788997,137.9297,160.11,160.03,6.4203]
[1746730789171,137.9297,160.11,160.04,15.9]
[1746730789488,162.4,160.1,160.0,65.9]
[1746730789686,162.4,160.1,160.01,15.9]
[1746730789887,162.4,160.1,160.0,65.9]
[1746730789888,21.86270222,160.09,160.0,65.9]
[1746730790193,21.86270222,160.09,160.01,15.9]
[1746730795294,21.86270222,160.09,160.01,22.14950435]
[1746730797196,6.24648635,160.09,160.01,22.14950435]
[1746730798207,6.24648635,160.09,160.02,37.51]
[1746730798401,6.24648635,160.09,160.01,22.14950435]
[1746730800389,21.86270222,160.09,160.02,15.9]
[1746730800699,26.0,160.06,159.98,132.3]
[1746730801001,26.0,160.05,159.96,109.64140055]
[1746730801299,27.6417,160.05,159.96,109.64140055]
[1746730801498,27.6417,160.05,159.97,15.9]
[1746730802299,6.24843789,160.04,159.97,22.15112272]
[1746730804209,152.01794143,160.08,159.98,50.0]
[1746730804210,6.24726682,160.07,159.98,50.0]
[1746730804394,6.24726682,160.07,160.0,50.0]
[1746730805698,6.24726682,160.07,160.01,6.24960939]
[1746730808620,6.24700811,160.08,160.01,6.24960939]
[1746730808829,1.6657,160.09,160.02,50.0]
[1746730809015,6.24609618,160.1,160.03,15.88]
[1746730810009,21.86091066,160.11,160.03,22.12851012]
[1746730810519,162.4,160.12,160.05,18.79181043]
[1746730810520,6.24537924,160.12,160.05,18.79181043]
[1746730810704,6.24537924,160.12,160.06,50.0]
[1746730810895,6.24537924,160.12,160.05,26.0]
[1746730811098,6.24537924,160.12,160.04,50.0]
[1746730811099,6.24537924,160.12,160.06,15.88]
[1746730811330,21.85866927,160.12,160.06,15.88]
[1746730811522,1.5102,160.11,160.06,15.88]
[1746730812392,6.24609618,160.1,160.06,15.88]
[1746730813627,21.86133665,160.1,160.06,15.88]
[1746730813922,21.86133665,160.1,160.07,15.88]
[1746730815198,21.86133665,160.1,160.03,82.3]
[1746730815403,21.86133665,160.1,160.04,15.88]
[1746730824428,21.86133665,160.1,160.02,50.0]
[1746730824634,1.6562,160.09,160.0,65.88]
[1746730824821,1.6562,160.09,160.0,15.88]
[1746730825008,21.86406796,160.08,160.0,15.88]
[1746730825208,21.86406796,160.08,160.01,15.88]
[1746730825825,6.24687656,160.08,160.01,15.88]
[1746730826026,6.24687656,160.08,160.02,50.0]
[1746730826337,17.2647969,160.08,160.02,50.0]
[1746730826739,17.2647969,160.08,160.03,6.24882834]
[1746730826912,17.2647969,160.08,160.02,56.24905943]
[1746730827516,17.2647969,160.08,160.03,15.88]
[1746730827932,11.01792034,160.08,160.03,22.12861926]
[1746730828262,11.01792034,160.08,160.04,76.0]
[1746730828836,6.24622937,160.1,160.04,76.0]
[1746730829032,6.24531601,160.12,160.04,76.0]
[1746730829238,23.44280574,160.17,160.06,50.0]
[1746730829442,49.44280574,160.17,160.06,50.0]
[1746730829823,23.44280574,160.17,160.08,50.0]
[1746730830034,34.42742163,160.17,160.09,15.88]
[1746730830547,34.42742163,160.17,160.09,22.12644736]
[1746730831043,34.42742163,160.17,160.09,15.88]
[1746730831418,34.42742163,160.17,160.09,22.12643257]
[1746730832674,34.42742163,160.17,160.09,15.88]
[1746730832978,34.42742163,160.17,160.1,15.86]
[1746730833162,0.14216157,160.16,160.1,15.86]
[1746730834078,21.85451139,160.15,160.1,15.86]
[1746730834949,6.24414611,160.15,160.1,15.86]
[1746730835148,6.24377097,160.16,160.1,15.86]
[1746730837677,6.24377097,160.16,160.1,22.10597266]
[1746730837871,6.24377097,160.16,160.1,15.86]
[1746730838357,6.24377097,160.16,160.08,6.2468066]
[1746730838674,6.24377097,160.16,160.09,15.98]
[1746730839371,47.85316157,160.16,160.1,15.98]
[1746730839783,136.4,160.15,160.1,15.98]
[1746730839967,136.4,160.15,160.06,15.86]
[1746730839968,0.14216157,160.14,160.06,15.86]
[1746730840159,0.14216157,160.14,160.07,15.98]
[1746730840360,6.24492599,160.13,160.07,15.98]
[1746730840868,21.85724098,160.13,160.03,62.35579636]
[1746730841060,136.4,160.12,160.04,15.98]
[1746730841881,6.24570607,160.11,160.04,15.98]
[1746730842873,6.24570607,160.11,160.04,22.22839825]
[1746730843584,6.24570607,160.11,160.03,6.1071]
[1746730843779,1.5608,160.1,160.04,15.98]
[1746730844168,142.64648635,160.09,160.01,15.86]
[1746730844489,142.64648635,160.09,160.02,15.98]
[1746730844660,158.26270222,160.09,160.02,15.98]
[1746730846582,142.64648635,160.09,160.02,22.22904662]
[1746730847490,142.64648635,160.09,160.03,15.96]
[1746730847689,142.64648635,160.09,160.03,22.20872173]
[1746730848485,136.4,160.09,160.03,22.20872173]
[1746730848789,136.4,160.14,160.03,73.79222173]
[1746730849290,162.4,160.14,160.03,73.79222173]
[1746730849585,21.85724098,160.13,160.03,73.79222173]
[1746730850586,21.85724098,160.13,160.03,57.83222173]
[1746730850798,21.85724098,160.13,160.04,16.0]
[1746730850990,21.85724098,160.13,160.03,57.83222173]
[1746730851175,21.85724098,160.13,160.04,15.98]